bitfinex/quotes_ETHUSD_20210701
["timestamp","ask_amount","ask_price","bid_price","bid_amount"]
[1625126739630,9.54225861,2135.0,2134.3,0.00601286]
[1625126739729,5.98661851,2134.9,2134.3,0.00601286]
[1625126740034,9.54225861,2135.0,2134.3,0.00601286]
[1625126740134,6.12542471,2134.9,2134.3,0.00601286]
[1625126740234,6.1316098,2134.9,2134.3,0.00601286]
[1625126740337,6.00497365,2134.8,2134.3,0.00601286]
[1625126740535,6.06497365,2134.8,2134.3,0.00601286]
[1625126740736,6.21497365,2134.8,2134.3,0.00601286]
[1625126740836,6.15497365,2134.8,2134.3,0.00601286]
[1625126740995,0.15,2134.8,2134.3,0.00601286]
[1625126741707,5.01,2134.7,2134.6,3.83e-06]
[1625126741804,28.4,2134.6,2133.8,0.00919602]
[1625126741902,0.38853934,2134.5,2133.8,0.00919602]
[1625126742001,11.13224209,2134.5,2133.8,6.02e-06]
[1625126742099,5.01,2134.4,2133.6,1.241e-05]
[1625126742203,12.38294544,2134.3,2133.6,1.241e-05]
[1625126742400,36.02645629,2134.1,2132.8,0.01173734]
[1625126742543,36.02645629,2134.1,2132.8,7.34e-06]
[1625126742544,20.30067858,2133.7,2132.8,7.34e-06]
[1625126742652,0.52306628,2133.6,2132.8,7.34e-06]
[1625126742724,9.91681976,2133.6,2132.8,7.34e-06]
[1625126742802,0.37969236,2133.2,2132.8,7.34e-06]
[1625126742904,11.44597634,2133.2,2132.8,7.34e-06]
[1625126742998,5.01,2133.1,2132.8,7.34e-06]
[1625126743101,5.01,2133.0,2132.8,7.34e-06]
[1625126743349,5.01,2132.9,2132.8,7.34e-06]
[1625126743501,11.37999754,2132.9,2132.8,7.34e-06]
[1625126743604,5.01,2132.9,2132.8,7.34e-06]
[1625126744703,5.01,2133.0,2132.8,7.34e-06]
[1625126744901,4.3831,2133.2,2132.8,7.34e-06]
[1625126744902,10.36495301,2133.2,2132.8,7.34e-06]
[1625126745106,4.3831,2133.2,2132.8,7.34e-06]
[1625126746232,4.39420178,2133.2,2132.8,7.34e-06]
[1625126746532,10.40726789,2133.2,2132.8,7.34e-06]
[1625126746934,4.39420178,2133.2,2132.8,7.34e-06]
[1625126747585,6.18816652,2133.1,2132.8,7.34e-06]
[1625126747816,5.01,2132.9,2132.6,1.359e-05]
[1625126747911,6.79329041,2132.8,2131.6,0.01493355]
[1625126748005,0.29909768,2132.3,2131.6,0.01493355]
[1625126748100,0.3994185,2132.2,2131.6,0.01493355]
[1625126748201,7.40304497,2132.2,2131.6,0.01493355]
[1625126748301,5.01,2132.1,2131.6,0.01493355]
[1625126748402,5.37626813,2132.0,2131.6,0.01493355]
[1625126748500,12.04881556,2132.0,2131.6,0.01493355]
[1625126748605,11.67877054,2132.0,2131.6,0.01493355]
[1625126748699,7.03523,2131.8,2131.6,0.01493355]
[1625126748808,33.41,2131.7,2131.6,0.01493355]
[1625126749507,33.41,2131.7,2131.6,3.55e-06]
[1625126749604,33.47,2131.7,2131.6,3.55e-06]
[1625126750035,28.46,2131.7,2131.6,3.55e-06]
[1625126750134,28.4,2131.7,2131.6,3.55e-06]
[1625126750231,21.65779,2131.7,2131.6,3.55e-06]
[1625126750430,27.80498295,2131.7,2131.6,3.55e-06]
[1625126750632,21.65779,2131.7,2131.6,3.55e-06]
[1625126750832,27.79249568,2131.7,2131.6,3.55e-06]
[1625126751132,21.65779,2131.7,2131.6,3.55e-06]
[1625126751233,27.88932182,2131.7,2131.6,3.55e-06]
[1625126751834,27.88932182,2131.7,2131.6,0.00693034]
[1625126751937,27.88932182,2131.7,2131.6,1.034e-05]
[1625126752035,27.92932182,2131.7,2131.6,1.034e-05]
[1625126752281,21.69779,2131.7,2131.6,1.034e-05]
[1625126752581,21.65779,2131.7,2131.6,1.034e-05]
[1625126753790,4.08983355,2131.8,2131.6,1.034e-05]
[1625126753887,0.01493355,2131.8,2131.6,1.034e-05]
[1625126754850,0.00841588,2132.2,2131.7,25.5]
[1625126755048,0.00841588,2132.2,2131.7,33.5]
[1625126755351,0.00841588,2132.2,2131.8,3.51515]
[1625126755551,0.00841588,2132.2,2131.9,0.16]
[1625126755648,0.00841588,2132.2,2132.0,5.01]
[1625126755847,0.00841588,2132.2,2132.0,12.03958]
[1625126755951,0.00841588,2132.2,2132.0,20.03958]
[1625126756247,0.00841588,2132.2,2132.1,32.45]
[1625126756783,0.01226625,2132.8,2132.2,26.6]
[1625126756884,0.01226625,2132.8,2132.2,39.77]
[1625126756989,0.01226625,2132.8,2132.5,7.02803]
[1625126757383,0.01226625,2132.8,2132.7,15.2]
[1625126757688,0.01226625,2132.8,2132.3,12.88472]
[1625126757887,0.01226625,2132.8,2132.4,0.01279883]
[1625126758191,0.01226625,2132.8,2132.5,7.02825]
[1625126759678,0.01110178,2133.2,2132.8,28.4]
[1625126759679,5.37e-06,2133.2,2132.8,28.4]
[1625126759878,5.37e-06,2133.2,2133.0,5.01]
[1625126760901,5.37e-06,2133.2,2133.0,12.03607]
[1625126761098,5.37e-06,2133.2,2133.1,5.11]
[1625126762252,5.37e-06,2133.2,2133.0,15.02607]
[1625126763689,5.37e-06,2133.2,2133.0,7.02607]
[1625126764194,5.37e-06,2133.2,2132.9,12.88105]
[1625126764291,0.32185087,2133.1,2132.9,3.51295]
[1625126764790,5.37e-06,2133.2,2132.9,3.51295]
[1625126766239,5.37e-06,2133.2,2132.9,10.54046]
[1625126766339,5.37e-06,2133.2,2132.9,18.54046]
[1625126766440,5.37e-06,2133.2,2133.1,5.01]
[1625126768500,5.37e-06,2133.2,2133.0,9.13442]
[1625126768599,5.37e-06,2133.2,2133.0,7.02642]
[1625126769500,6.00637536,2133.2,2133.0,7.02642]
[1625126769602,6.00637536,2133.2,2132.9,3.51295]
[1625126769603,6.03555918,2133.2,2132.9,3.51295]
[1625126769798,5.37e-06,2133.2,2132.9,3.51295]
[1625126769997,6.08984254,2133.2,2132.9,3.51295]
[1625126770095,5.37e-06,2133.2,2132.9,3.51295]
[1625126770856,5.01,2133.1,2132.8,0.01173734]
[1625126771056,5.01,2133.0,2132.8,0.01173734]
[1625126771157,26.47222033,2132.9,2132.8,0.01173734]
[1625126771255,20.5,2132.9,2132.8,0.01173734]
[1625126771455,5.01,2133.0,2132.8,0.01173734]
[1625126771856,5.01,2133.1,2132.8,0.01173734]
[1625126772459,5.01,2133.0,2132.8,0.01173734]
[1625126772595,5.01,2133.1,2132.8,0.01173734]
[1625126773904,28.4,2133.0,2132.6,3.59e-06]
[1625126774106,5.01,2132.8,2132.6,3.59e-06]
[1625126774205,9.9328,2132.8,2132.6,3.59e-06]
[1625126774608,9.9328,2132.8,2132.4,1.242e-05]
[1625126774709,28.54,2132.7,2131.8,0.01440259]
[1625126774866,3.8,2132.2,2131.8,0.01440259]
[1625126774958,0.32978327,2132.1,2131.8,0.01440259]
[1625126775060,5.01,2132.0,2131.8,0.01440259]
[1625126776729,28.41,2131.9,2131.8,0.01440259]
[1625126776927,5.01,2131.9,2131.8,0.01440259]
[1625126777109,14.12551588,2132.2,2131.8,0.01440259]
[1625126777165,5.01,2132.0,2131.8,0.01440259]
[1625126779772,4.7393,2132.0,2131.8,0.01440259]
[1625126780674,0.00841588,2132.2,2131.8,0.01440259]
[1625126780980,5.88e-06,2132.2,2131.8,2.57773027]
[1625126781077,5.88e-06,2132.2,2131.9,3.51587]
[1625126781178,0.0133335,2132.4,2131.9,4.87107]
[1625126781275,0.0133335,2132.4,2132.1,5.01]
[1625126781375,0.0133335,2132.4,2132.1,8.4205]
[1625126781646,0.0133335,2132.4,2132.2,0.16]
[1625126781647,3.5e-06,2132.4,2132.2,0.16]
[1625126781744,3.5e-06,2132.4,2132.2,7.73332768]
[1625126781847,3.5e-06,2132.4,2132.3,5.17]
[1625126782147,3.5e-06,2132.4,2132.3,20.19908]
[1625126782244,3.5e-06,2132.4,2132.3,20.03908]
[1625126782945,3.5e-06,2132.4,2132.3,23.55275]
[1625126783049,3.5e-06,2132.4,2132.3,20.03908]
[1625126783147,0.01279883,2132.6,2132.4,5.01]
[1625126783347,0.01279883,2132.6,2132.5,40.43716]
[1625126783546,0.01279883,2132.6,2132.5,48.43716]
[1625126783969,0.01279883,2132.6,2132.5,51.95061]
[1625126784071,0.01279883,2132.6,2132.5,48.43716]
[1625126784271,0.01226625,2132.8,2132.6,28.4]
[1625126784375,0.01226625,2132.8,2132.7,35.85715]
[1625126784472,5.37e-06,2133.2,2132.8,25.9]
[1625126784670,5.37e-06,2133.2,2132.9,32.16]
[1625126784870,5.37e-06,2133.2,2132.9,40.16]
[1625126784972,5.37e-06,2133.2,2132.9,40.2]
[1625126785473,5.37e-06,2133.2,2133.0,10.6987745]
[1625126785570,5.37e-06,2133.2,2133.0,13.7850745]
[1625126785670,5.37e-06,2133.2,2133.1,5.01]
[1625126786231,0.00968639,2133.8,2133.1,5.01]
[1625126786330,0.00968639,2133.8,2133.1,13.01]
[1625126786832,0.00968639,2133.8,2133.2,7.02551]
[1625126788374,0.00968639,2133.8,2133.3,24.36]
[1625126788964,0.0641317,2134.4,2133.4,22.85]
[1625126789068,0.0641317,2134.4,2133.9,3.51291]
[1625126789866,0.0641317,2134.4,2134.2,0.00824944]
[1625126790065,0.00779491,2134.6,2134.2,0.00824944]
[1625126790169,0.00779491,2134.6,2134.3,3.51259]
[1625126790709,5.01,2134.5,2134.3,3.51259]
[1625126792610,0.00779491,2134.6,2134.3,3.51259]
[1625126796349,0.00779491,2134.6,2134.5,17.21]
[1625126796549,0.00779491,2134.6,2134.5,12.36]
[1625126796950,0.00779491,2134.6,2134.5,8.06]
[1625126797910,0.00779491,2134.6,2134.5,7.9]
[1625126798111,0.00779491,2134.6,2134.5,7.02202]
[1625126798414,0.00779491,2134.6,2134.3,3.51259]
[1625126799319,0.00779491,2134.6,2134.5,16.56]
[1625126799419,0.00779491,2134.6,2134.5,23.58185]
[1625126799673,0.00779491,2134.6,2134.5,15.58269]
[1625126799774,0.00735383,2134.8,2134.6,10.25]
[1625126800076,0.00735383,2134.8,2134.5,8.56084]
[1625126800273,0.00735383,2134.8,2134.5,8.52084]
[1625126800375,0.00735383,2134.8,2134.5,3.51084]
[1625126800676,4.15535383,2134.8,2134.5,3.51084]
[1625126802105,10.27722129,2134.8,2134.5,3.51084]
[1625126802210,4.15535383,2134.8,2134.5,3.51084]
[1625126802304,5.01,2134.6,2134.5,3.51084]
[1625126802404,5.01,2134.6,2134.4,0.00779491]
[1625126802707,2.888,2134.7,2134.4,0.00779491]
[1625126802904,8.84915673,2134.7,2134.4,0.00779491]
[1625126803006,8.84915673,2134.7,2134.2,0.00824944]
[1625126803117,8.84915673,2134.7,2133.0,0.01104858]
[1625126803118,5.3112972,2134.5,2133.0,0.01104858]
[1625126803212,20.30287057,2133.8,2133.0,0.01104858]
[1625126803313,0.29799259,2133.5,2133.0,0.01104858]
[1625126803409,0.31828033,2133.5,2133.0,0.01104858]
[1625126803610,7.04821754,2133.3,2133.0,0.01104858]
[1625126803710,5.01,2133.1,2133.0,0.01104858]
[1625126803809,5.01,2133.1,2133.0,8.58e-06]
[1625126803911,5.17,2133.1,2133.0,8.58e-06]
[1625126804201,8.28153752,2133.1,2132.8,1.592e-05]
[1625126804287,0.12,2133.0,2132.8,1.592e-05]
[1625126804400,3.63616,2133.0,2132.8,1.592e-05]
[1625126804689,10.66906,2133.0,2132.8,1.592e-05]
[1625126805295,7.0329,2133.0,2132.8,1.592e-05]
[1625126806036,6.73993,2133.0,2132.8,1.592e-05]
[1625126806616,5.01,2132.9,2132.8,1.592e-05]
[1625126808522,6.73993,2133.0,2132.8,1.592e-05]
[1625126810378,9.54162324,2133.0,2132.8,1.592e-05]
[1625126810479,0.12,2132.9,2132.8,1.592e-05]
[1625126810579,9.3299,2132.9,2132.8,1.592e-05]
[1625126810778,9.4799,2132.9,2132.8,1.592e-05]
[1625126810877,12.28159324,2132.9,2132.8,1.592e-05]
[1625126811228,15.14117284,2132.9,2132.8,1.592e-05]
[1625126812231,28.35,2132.8,2132.2,3.5e-06]
[1625126812332,8.1987297,2132.7,2132.0,9.38e-06]
[1625126812430,13.3587297,2132.7,2132.0,9.38e-06]
[1625126812528,28.3587297,2132.7,2132.0,9.38e-06]
[1625126812627,6.86697548,2132.5,2132.0,9.38e-06]
[1625126812729,0.0133335,2132.4,2132.0,9.38e-06]
[1625126812830,0.29111639,2132.2,2132.0,9.38e-06]
[1625126812930,1.38981639,2132.2,2132.0,9.38e-06]
[1625126813027,6.53807175,2132.1,2132.0,9.38e-06]
[1625126813228,9.33904637,2132.1,2132.0,9.38e-06]
[1625126813427,9.39904637,2132.1,2132.0,9.38e-06]
[1625126813529,3.01097462,2132.1,2132.0,9.38e-06]
[1625126813728,3.01097462,2132.1,2131.2,0.01597921]
[1625126813729,5.01,2131.9,2131.2,0.01597921]
[1625126813830,11.23624,2131.6,2131.2,0.01597921]
[1625126813930,6.22193894,2131.5,2131.2,0.01597921]
[1625126814033,5.01,2131.4,2131.2,0.01597921]
[1625126814131,5.55335781,2131.4,2131.2,0.01597921]
[1625126814230,3.3203,2131.4,2131.2,0.01597921]
[1625126814330,14.54,2131.3,2131.2,0.01597921]
[1625126814530,0.04,2131.3,2131.2,0.01597921]
[1625126814630,3.3203,2131.4,2131.2,0.01597921]
[1625126815773,10.35623,2131.4,2131.2,0.01597921]
[1625126816073,28.81,2131.3,2131.2,0.01597921]
[1625126816173,34.87809575,2131.3,2131.2,0.01597921]
[1625126816274,28.81,2131.3,2131.2,0.01597921]
[1625126816774,5.01,2131.3,2131.2,0.01597921]
[1625126816875,7.03593,2131.4,2131.2,0.01597921]
[1625126817077,1.0975,2131.5,2131.2,0.01597921]
[1625126817178,4.2154597,2131.6,2131.2,0.01597921]
[1625126817738,0.06,2131.5,2131.2,0.01597921]
[1625126818231,4.2154597,2131.6,2131.2,0.01597921]
[1625126818332,5.01,2131.4,2131.2,0.01597921]
[1625126819537,7.03578,2131.5,2131.2,0.01597921]
[1625126820080,6.02536088,2131.4,2131.2,0.01597921]
[1625126820173,7.03578,2131.5,2131.2,0.01597921]
[1625126820765,7.02475536,2131.5,2131.2,0.01597921]
[1625126821673,0.0154597,2131.6,2131.2,0.01597921]
[1625126822418,0.01493355,2131.8,2131.3,28.35]
[1625126822579,0.01493355,2131.8,2131.5,5.01]
[1625126822774,0.01493355,2131.8,2131.6,5.01]
[1625126822869,0.00841588,2132.2,2131.7,19.15]
[1625126823071,0.00841588,2132.2,2131.9,23.11]
[1625126823278,0.00841588,2132.2,2131.9,5.01]
[1625126823369,0.00841588,2132.2,2131.6,5.01]
[1625126823569,0.00841588,2132.2,2131.7,0.14]
[1625126824275,0.00841588,2132.2,2131.7,5.01]
[1625126824368,0.00841588,2132.2,2131.8,5.01]
[1625126824731,0.00841588,2132.2,2131.6,0.01493355]
[1625126826530,0.00841588,2132.2,2131.7,5.01]
[1625126826866,0.00841588,2132.2,2131.8,5.01]
[1625126827164,0.00841588,2132.2,2131.9,23.32]
[1625126827368,0.0133335,2132.4,2132.0,18.05]
[1625126827465,0.0133335,2132.4,2132.2,5.01]
[1625126829116,0.0133335,2132.4,2132.3,5.01]
[1625126829314,0.01226625,2132.8,2132.3,5.01]
[1625126829512,0.01226625,2132.8,2132.5,4.68681]
[1625126830668,0.01226625,2132.8,2132.5,12.81285]
[1625126830768,0.01226625,2132.8,2132.6,4.68681]
[1625126830867,0.01226625,2132.8,2132.7,33.36]
[1625126831073,0.01226625,2132.8,2132.7,41.36]
[1625126831167,0.0106963,2133.4,2132.7,41.36]
[1625126831318,0.0106963,2133.4,2132.8,5.01]
[1625126831418,0.0106963,2133.4,2132.9,5.01]
[1625126831820,0.0106963,2133.4,2133.0,0.01517117]
[1625126831921,0.0106963,2133.4,2133.0,4.70010117]
[1625126832117,0.0106963,2133.4,2133.0,4.71120295]
[1625126833072,0.0106963,2133.4,2133.2,5.01]
[1625126833371,0.0106963,2133.4,2133.3,22.84]
[1625126833645,0.01018685,2133.6,2133.4,12.4]
[1625126833742,0.01018685,2133.6,2133.4,5.01]
[1625126834193,0.01018685,2133.6,2133.2,3.51331]
[1625126834391,6.25353955,2134.0,2133.2,3.51331]
[1625126834497,6.25353955,2134.0,2133.2,0.0106963]
[1625126834991,6.25353955,2134.0,2133.4,4.68542]
[1625126835878,7.02819,2133.7,2133.4,4.68542]
[1625126838516,9.37109,2133.9,2133.4,4.68542]
[1625126838615,7.03266301,2134.0,2133.4,4.68542]
[1625126839824,7.03266301,2134.0,2133.6,5.01]
[1625126840021,0.00566301,2134.0,2133.6,5.01]
[1625126841361,0.00566301,2134.0,2133.4,4.68542]
[1625126841462,0.00566301,2134.0,2133.4,12.68542]
[1625126841566,0.00566301,2134.0,2133.4,4.68542]
[1625126841567,6.19322585,2134.0,2133.4,4.68542]
[1625126841663,6.25585368,2134.0,2133.4,4.68542]
[1625126842167,0.00566301,2134.0,2133.4,4.68542]
[1625126842676,7.03231301,2134.0,2133.4,4.68542]
[1625126843276,0.00566301,2134.0,2133.4,4.68542]
[1625126844975,0.00566301,2134.0,2133.6,5.01]
[1625126846680,0.00566301,2134.0,2133.5,8.0]
[1625126846780,0.00566301,2134.0,2133.4,4.63542]
[1625126847123,0.00566301,2134.0,2133.4,12.63542]
[1625126847124,0.00566301,2134.0,2133.6,5.01]
[1625126847317,0.00566301,2134.0,2133.7,5.01]
[1625126847413,0.00566301,2134.0,2133.7,8.52268]
[1625126847514,0.00566301,2134.0,2133.7,3.51268]
[1625126848720,0.0061167,2134.2,2133.7,14.01268]
[1625126848819,0.0061167,2134.2,2133.9,5.01]
[1625126848922,0.0061167,2134.2,2134.0,4.68365]
[1625126850271,0.0061167,2134.2,2134.1,5.01]
[1625126850370,0.0061167,2134.2,2134.0,12.68365]
[1625126850470,0.0061167,2134.2,2134.0,4.68365]
[1625126850854,0.0061167,2134.2,2134.1,5.01]
[1625126851157,0.0061167,2134.2,2134.0,12.68365]
[1625126851254,0.0061167,2134.2,2134.0,4.68365]
[1625126852418,0.0061167,2134.2,2134.1,5.01]
[1625126853517,0.0061167,2134.2,2134.0,4.68365]
[1625126854049,0.0061167,2134.2,2134.1,5.01]
[1625126855101,0.0061167,2134.2,2134.1,9.3012]
[1625126855304,0.0061167,2134.2,2134.1,15.2612]
[1625126855705,6.7e-06,2134.2,2134.1,22.85080583]
[1625126855807,6.7e-06,2134.2,2134.1,15.2612]
[1625126856093,0.00779491,2134.6,2134.2,28.3]
[1625126856149,0.00779491,2134.6,2134.4,5.01]
[1625126856355,0.00779491,2134.6,2134.5,24.42]
[1625126857256,0.00779491,2134.6,2134.5,24.3]
[1625126857655,0.00779491,2134.6,2134.5,19.06]
[1625126858154,0.00779491,2134.6,2134.5,5.01]
[1625126859261,0.00779491,2134.6,2134.5,10.41]
[1625126859466,0.00779491,2134.6,2134.5,13.92111]
[1625126859859,0.00692679,2135.0,2134.6,14.15]
[1625126860061,0.00692679,2135.0,2134.5,8.52111]
[1625126862611,0.00692679,2135.0,2134.6,9.4]
[1625126863561,0.00692679,2135.0,2134.6,0.00735383]
[1625126865883,11.70831,2135.6,2134.6,13.18029232]
[1625126865974,11.70831,2135.6,2134.6,19.06670149]
[1625126866166,19.85,2135.8,2134.9,4.2]
[1625126866462,13.0,2135.8,2135.1,5.01]
[1625126866672,13.0,2135.8,2135.2,8.78358529]
[1625126866764,13.0,2135.8,2135.2,7.97717783]
[1625126866862,13.0,2135.8,2135.2,8.31]
[1625126867060,13.0,2135.8,2135.2,0.31]
[1625126867258,13.0,2135.8,2135.4,9.35741]
[1625126867499,13.0,2135.8,2135.5,6.93826758]
[1625126867503,10.22826337,2135.8,2135.5,0.06]
[1625126867799,10.22826337,2135.8,2135.6,5.01]
[1625126867946,10.22826337,2135.8,2135.5,0.06]
[1625126867947,10.22826337,2135.8,2135.5,0.9939221]
[1625126868144,10.22826337,2135.8,2135.5,0.06]
[1625126868244,14.46216337,2135.8,2135.5,0.06]
[1625126870902,14.31716337,2135.8,2135.5,0.06]
[1625126871201,0.06,2135.7,2135.5,0.06]
[1625126871505,10.08326337,2135.8,2135.5,0.06]
[1625126872559,6.05084105,2135.7,2135.5,0.06]
[1625126872662,10.10429433,2135.7,2135.2,3.67031]
[1625126872767,5.01,2135.5,2135.2,3.67031]
[1625126872861,35.93580317,2135.4,2135.1,2.48682]
[1625126873010,36.41095816,2135.4,2135.0,3.74e-06]
[1625126873116,5.01,2135.2,2135.0,3.74e-06]
[1625126873211,8.1457,2135.2,2135.0,3.74e-06]
[1625126873310,5.01,2134.9,2134.8,7.96e-06]
[1625126873812,6.04044724,2135.2,2134.8,0.00774203]
[1625126873813,5.01,2135.0,2134.8,0.00774203]
[1625126874354,33.31,2134.9,2134.8,0.00774203]
[1625126874554,33.51,2134.9,2134.8,0.00774203]
[1625126875157,0.2,2134.9,2134.8,0.00774203]
[1625126875358,5.01,2135.0,2134.8,0.00774203]
[1625126875558,5.01789374,2135.2,2134.8,0.00774203]
[1625126876057,0.00789374,2135.2,2134.8,0.00774203]
[1625126876159,0.00789374,2135.2,2134.8,3.51965203]
[1625126876712,0.00789374,2135.2,2134.8,3.31965203]
[1625126877514,0.00789374,2135.2,2135.0,0.00693243]
[1625126877910,0.00789374,2135.2,2135.0,0.01347828]
[1625126878256,0.00789374,2135.2,2135.0,0.01965024]
[1625126880974,0.00789374,2135.2,2135.1,21.76]
[1625126881072,0.00789374,2135.2,2135.1,29.76]
[1625126881371,0.00789374,2135.2,2135.1,13.01]
[1625126881669,10.08326337,2135.8,2135.2,12.85]
[1625126881771,10.08326337,2135.8,2135.4,10.53102]
[1625126882471,0.04,2135.7,2135.4,10.53102]
[1625126882770,0.04,2135.7,2135.4,3.51034]
[1625126883630,10.07326337,2135.8,2135.4,16.71034]
[1625126884128,10.07326337,2135.8,2135.4,23.73117]
[1625126884230,10.07326337,2135.8,2135.4,31.73117]
[1625126884329,10.07326337,2135.8,2135.4,24.71034]
[1625126884629,7.30159159,2135.8,2135.4,24.71034]
[1625126885235,7.30159159,2135.8,2135.5,7.02042]
[1625126889472,7.30159159,2135.8,2135.7,12.56]
[1625126889567,7.30159159,2135.8,2135.7,20.56]
[1625126890110,9.9025,2136.5,2135.8,18.1]
[1625126890215,9.9025,2136.5,2136.1,3.50932]
[1625126890311,9.9025,2136.5,2136.1,10.52788]
[1625126890411,9.9625,2136.5,2136.1,10.52788]
[1625126890716,0.06,2136.5,2136.1,10.52788]
[1625126890914,0.06,2136.5,2136.1,3.50932]
[1625126891013,6.13367088,2136.5,2136.1,3.50932]
[1625126891214,6.07367088,2136.5,2136.1,3.50932]
[1625126891311,0.08,2136.4,2136.1,3.50932]
[1625126891982,0.08,2136.4,2135.6,9.35934]
[1625126892069,0.08,2136.4,2135.4,4.68043]
[1625126892070,0.15,2136.3,2135.4,4.68043]
[1625126892270,0.30400739,2136.0,2135.4,4.55263]
[1625126892396,0.30400739,2136.0,2134.8,0.00774203]
[1625126892397,0.40409788,2135.9,2134.8,0.00774203]
[1625126892510,7.61528553,2135.9,2135.0,3.54143814]
[1625126892591,5.01,2135.8,2135.0,3.54143814]
[1625126892692,11.53020195,2135.7,2135.0,3.54143814]
[1625126892790,11.81624746,2135.7,2135.0,0.02958814]
[1625126892893,0.33928753,2135.5,2135.0,0.02958814]
[1625126892992,6.75337647,2135.5,2135.0,0.02958814]
[1625126893092,0.15,2135.4,2135.0,0.02958814]
[1625126893191,7.19147973,2135.4,2135.0,0.02958814]
[1625126893294,7.17452,2135.4,2135.0,0.02958814]
[1625126893390,5.01,2135.2,2135.0,0.02958814]
[1625126893493,4.4223,2135.2,2135.0,0.02958814]
[1625126893594,9.4323,2135.2,2135.0,0.02958814]
[1625126893693,4.4223,2135.2,2135.0,0.02958814]
[1625126893791,28.5,2135.1,2135.0,0.02958814]
[1625126893891,33.51,2135.1,2135.0,0.02958814]
[1625126894190,33.51,2135.1,2135.0,1.814e-05]
[1625126894293,33.51,2135.1,2134.8,2.03e-06]
[1625126894294,7.02493,2134.9,2134.8,2.03e-06]
[1625126894465,13.18532034,2134.9,2134.8,2.03e-06]
[1625126894665,7.02493,2134.9,2134.8,2.03e-06]
[1625126894765,7.22493,2134.9,2134.8,2.03e-06]
[1625126895465,7.22493,2134.9,2134.8,0.00774203]
[1625126895938,30.37493,2134.9,2134.8,0.00774203]
[1625126896744,7.22493,2134.9,2134.8,0.00774203]
[1625126896848,17.02493,2134.9,2134.8,0.00774203]
[1625126897147,10.0,2134.9,2134.8,0.00774203]
[1625126897249,17.02493,2134.9,2134.8,0.00774203]
[1625126897648,2.35638162,2135.7,2134.8,0.00774203]
[1625126897754,0.15,2135.6,2135.0,28.3]
[1625126897857,1.7143,2136.4,2135.0,39.65888612]
[1625126897858,0.2,2135.2,2135.0,39.65888612]
[1625126897952,6.85,2136.5,2135.1,12.08958138]
[1625126898052,10.9086,2136.4,2135.1,5.0321611]
[1625126898153,19.26341655,2136.4,2135.2,0.2]
[1625126898257,7.02166,2135.9,2135.2,0.2]
[1625126898651,7.02166,2135.9,2135.6,0.00617196]
[1625126898753,7.02166,2135.9,2134.7,3e-06]
[1625126898754,35.01431629,2135.8,2134.7,3e-06]
[1625126898856,35.01431629,2135.8,2133.8,11.39844335]
[1625126898857,0.29530969,2135.5,2133.8,11.39844335]
[1625126899024,20.0,2134.8,2133.6,0.01041855]
[1625126899090,7.29972856,2133.0,2132.9,5.85505]
[1625126899204,7.29972856,2133.0,2132.8,0.0123399]
[1625126899304,8.71122856,2133.0,2132.8,0.0123399]
[1625126899390,6.2905026,2132.9,2132.8,0.0123399]
[1625126899494,3.9858,2132.9,2132.8,0.0123399]
[1625126899593,5.76433393,2133.0,2132.8,0.0123399]
[1625126899693,2.99094746,2133.0,2132.8,0.0123399]
[1625126899906,24.88415004,2132.9,2132.8,0.0123399]
[1625126899991,29.39685004,2132.9,2132.8,0.0123399]
[1625126900196,23.1127,2132.9,2132.8,0.0123399]
[1625126900290,23.2627,2132.9,2132.8,0.0123399]
[1625126900891,29.49528994,2132.9,2132.8,0.0123399]
[1625126900994,23.2627,2132.9,2132.8,0.0123399]
[1625126901092,23.3227,2132.9,2132.8,0.0123399]
[1625126901919,23.2627,2132.9,2132.8,0.0123399]
[1625126903022,4.6627,2132.9,2132.8,0.0123399]
[1625126903121,0.15,2132.9,2132.8,0.0123399]
[1625126903322,5.16,2132.9,2132.8,0.0123399]
[1625126903773,23.41,2132.9,2132.8,0.0123399]
[1625126903875,27.8723,2132.9,2132.8,0.0123399]
[1625126905380,22.8623,2132.9,2132.8,0.0123399]
[1625126905478,18.4,2132.9,2132.8,0.0123399]
[1625126905818,24.71842189,2132.9,2132.8,0.0123399]
[1625126906016,18.46,2132.9,2132.8,0.0123399]
[1625126906217,0.15,2132.9,2132.8,0.0123399]
[1625126906419,6.35931,2133.0,2132.8,4.2939399]
[1625126906719,0.15758944,2133.2,2132.8,4.2939399]
[1625126906820,0.00758944,2133.2,2132.8,4.2939399]
[1625126907536,7.45534579,2133.2,2132.8,4.2939399]
[1625126907624,5.30865636,2133.1,2132.6,0.01282713]
[1625126907725,11.27898873,2133.0,2132.6,0.01282713]
[1625126907821,5.01,2132.9,2132.6,0.01282713]
[1625126907972,0.15,2132.9,2132.6,0.01282713]
[1625126908174,5.01,2132.8,2132.6,0.01282713]
[1625126908274,0.0123399,2133.0,2132.6,0.01282713]
[1625126908275,6.26657615,2133.0,2132.6,0.01282713]
[1625126908374,0.0123399,2133.0,2132.6,0.01282713]
[1625126908476,7.03255,2132.9,2132.6,0.01282713]
[1625126908579,0.0123399,2133.0,2132.6,0.01282713]
[1625126910223,5.0223399,2133.0,2132.6,0.01282713]
[1625126910320,5.01,2132.9,2132.6,0.01282713]
[1625126910420,4.765,2132.9,2132.6,0.01282713]
[1625126910614,10.99941628,2132.9,2132.6,0.01282713]
[1625126910716,0.06,2132.8,2132.6,0.01282713]
[1625126910980,4.765,2132.9,2132.6,0.01282713]
[1625126911280,0.60342393,2132.9,2132.6,0.01282713]
[1625126911680,0.0123399,2133.0,2132.6,0.01282713]
[1625126914482,12.88893376,2133.0,2132.6,0.01282713]
[1625126914580,0.1623399,2133.0,2132.6,0.01282713]
[1625126915226,0.00758944,2133.2,2132.7,28.3]
[1625126915325,0.01137118,2133.4,2132.7,28.3]
[1625126915728,0.01137118,2133.4,2132.9,5.01]
[1625126915828,0.01137118,2133.4,2133.0,0.08]
[1625126916029,1.18e-06,2133.4,2133.0,0.08]
[1625126916225,1.18e-06,2133.4,2133.1,0.18]
[1625126916330,0.0087096,2134.2,2133.2,28.3]
[1625126916428,0.0087096,2134.2,2133.2,43.3]
[1625126916534,0.0087096,2134.2,2133.2,51.3]
[1625126916629,0.0087096,2134.2,2133.2,52.4803]
[1625126916782,0.0087096,2134.2,2133.4,5.01]
[1625126916881,0.0087096,2134.2,2133.4,14.9901]